fUSD/lending_fUSD_20260203
["ID","MTS","AMOUNT","RATE_DAILY","PERIOD"]
[404419463,1770125443785,-500.0,0.00017899,3]
[404419464,1770125443795,-500.0,0.00017899,3]
[404419465,1770125443804,-174.61919141,0.00017899,3]
[404419466,1770125443814,-500.0,0.00017899,3]
[404419467,1770125443825,-500.0,0.00017899,3]
[404419468,1770125443835,-181.08010149,0.00017899,3]
[404419469,1770125443845,-500.0,0.00017899,3]
[404419470,1770125443856,-500.0,0.00017899,3]
[404419471,1770125443866,-187.78006525,0.00017899,3]
[404419472,1770125443875,-500.0,0.00017899,3]
[404419473,1770125443885,-500.0,0.00017899,3]
[404419474,1770125443896,-194.72792766,0.00017899,3]
[404419475,1770125443906,-500.0,0.00017899,3]
[404419476,1770125443917,-201.93286099,0.00017899,3]
[404419477,1770125443928,-500.0,0.00017899,3]
[404419478,1770125443938,-209.40437684,0.00017899,3]
[404419479,1770125443950,-217.15233878,0.00017899,3]
[404419480,1770125443959,-225.18697532,0.00017899,3]
[404419481,1770125443970,-233.51889341,0.00017899,3]
[404419482,1770125443980,-242.15909246,0.00017899,3]
[404419483,1770125443990,-251.11897888,0.00017899,3]
[404419484,1770125444000,-322.6107,0.00017899,3]
[404419485,1770125444009,-260.4103811,0.00017899,3]
[404419486,1770125444019,-270.0455652,0.00017899,3]
[404419487,1770125444030,-334.5472959,0.00017899,3]
[404419488,1770125444039,-346.92554585,0.00017899,3]
[404419489,1770125444048,-359.76179104,0.00017899,3]
[404419490,1770125444058,-373.07297731,0.00017899,3]
[404419491,1770125444067,-200.0,0.00017899,3]
[404419492,1770125444077,-280.03725112,0.00017899,3]
[404419493,1770125444086,-386.87667747,0.00017899,3]
[404419494,1770125444095,-290.39862941,0.00017899,3]
[404419495,1770125444104,-200.0,0.00017899,3]
[404419496,1770125444113,-401.19111454,0.00017899,3]
[404419497,1770125444123,-301.1433787,0.00017899,3]
[404419498,1770125444132,-416.03518578,0.00017899,3]
[404419499,1770125444141,-200.0,0.00017899,3]
[404419500,1770125444150,-431.42848765,0.00017899,3]
[404419501,1770125444159,-200.0,0.00017899,3]
[404419502,1770125444169,-500.0,0.00017899,3]
[404419503,1770125444178,-447.3913417,0.00017899,3]
[404419504,1770125444187,-200.0,0.00017899,3]
[404419505,1770125444196,-500.0,0.00017899,3]
[404419506,1770125444205,-463.94482134,0.00017899,3]
[404419507,1770125444215,-200.0,0.00017899,3]
[404419508,1770125444224,-500.0,0.00017899,3]
[404419509,1770125444235,-721.12765535,0.00017899,3]
[404419510,1770125444245,-481.11077973,0.00017899,3]
[404419511,1770125444256,-200.0,0.00017899,3]
[404419512,1770125444268,-747.8093786,0.00017899,3]
[404419513,1770125444279,-498.91187858,0.00017899,3]
[404419514,1770125444290,-500.0,0.00017899,3]
[404419515,1770125444301,-200.0,0.00017899,3]
[404419516,1770125444312,-775.47832561,0.00017899,3]
[404419517,1770125444322,-500.0,0.00017899,3]
[404419518,1770125444331,-200.0,0.00017899,3]
[404419519,1770125444341,-804.17102365,0.00017899,3]
[404419520,1770125444352,-517.37161808,0.00017899,3]
[404419521,1770125444362,-500.0,0.00017899,3]
[404419522,1770125444373,-200.0,0.00017899,3]
[404419523,1770125444382,-833.92535153,0.00017899,3]
[404419524,1770125444392,-536.51436795,0.00017899,3]
[404419525,1770125444404,-500.0,0.00017899,3]
[404419526,1770125444414,-200.0,0.00017899,3]
[404419527,1770125444426,-864.78058953,0.00017899,3]
[404419528,1770125444435,-338.46285477,0.00017899,3]
[404419529,1770125444444,-500.0,0.00017899,3]
[404419530,1770125444453,-896.77747135,0.00017899,3]
[404419531,1770125444462,-500.0,0.00017899,3]
[404419532,1770125444472,-929.95823779,0.00017899,3]
[404419533,1770125444480,-500.0,0.00017899,3]
[404419534,1770125444490,-964.36669259,0.00017899,3]
[404419535,1770125444499,-500.0,0.00017899,3]
[404419536,1770125444508,-1000.04826021,0.00017899,3]
[404419537,1770125444517,-174.13280155,0.00017899,3]
[404419538,1770125444526,-209.40437684,0.00017899,3]
[404419539,1770125444535,-217.15233878,0.00017899,3]
[404419540,1770125444544,-225.18697532,0.00017899,3]
[404419541,1770125444553,-233.51889341,0.00017899,3]
[404419542,1770125444562,-242.15909246,0.00017899,3]
[404419543,1770125444571,-251.11897888,0.00017899,3]
[404419544,1770125444580,-260.4103811,0.00017899,3]
[404419545,1770125444589,-270.0455652,0.00017899,3]
[404419546,1770125444599,-280.03725112,0.00017899,3]
[404419547,1770125444607,-290.39862941,0.00017899,3]
[404419548,1770125444617,-301.1433787,0.00017899,3]
[404419549,1770125444625,-151.0,0.00017899,3]
[404419550,1770125444634,-151.0,0.00017899,3]
[404419551,1770125444643,-151.0,0.00017899,3]
[404419552,1770125444652,-151.0,0.00017899,3]
[404419553,1770125444661,-151.0,0.00017899,3]
[404419554,1770125444670,-151.0,0.00017899,3]
[404419555,1770125444679,-151.0,0.00017899,3]
[404419556,1770125444688,-151.0,0.00017899,3]
[404419557,1770125444696,-151.0,0.00017899,3]
[404419558,1770125444705,-151.0,0.00017899,3]
[404419559,1770125444714,-151.0,0.00017899,3]
[404419560,1770125444723,-5000.0,0.000179,2]
[404419561,1770125444732,-25000.0,0.000179,3]
[404419562,1770125444741,-1270.0,0.000179,6]
[404419563,1770125444750,-269.09178599,0.000179,2]
[404419564,1770125444759,-2147.65440152,0.000179,2]
[404419565,1770125444769,-19502.0,0.000179,2]
[404419566,1770125444778,-4667.3348798,0.00017931,2]
[404419567,1770125444787,-191260.1808898,0.00017931,2]
[404419568,1770125444796,-135151.2455973,0.00017931,2]
[404419569,1770125444805,-3500.5011598,0.00017931,2]
[404419570,1770125444814,-2888.05336964,0.0001799,3]
[404419571,1770125444825,-6635.2220609,0.0001799,2]
[404419572,1770125444834,-300.0,0.00017999,2]
[404419573,1770125444843,-300.0,0.00017999,2]
[404419574,1770125444852,-300.0,0.00017999,2]
[404419575,1770125444862,-300.0,0.00017999,2]
[404419576,1770125444871,-156.0,0.00018,4]
[404419577,1770125444881,-1210490.08680225,0.00018,2]
[404419578,1770125444890,-297.41562532,0.00018,2]
[404419579,1770125444901,-297.41562532,0.00018,2]
[404419580,1770125444910,-297.41562532,0.00018,2]
[404419581,1770125444919,-297.41562532,0.00018,2]
[404419582,1770125444927,-297.41562532,0.00018,2]
[404419583,1770125444936,-297.41562532,0.00018,2]
[404419584,1770125444946,-297.41562532,0.00018,2]
[404419585,1770125444955,-297.41562532,0.00018,2]
[404419586,1770125444964,-297.41562532,0.00018,2]
[404419587,1770125444973,-297.41562532,0.00018,2]
[404419588,1770125444982,-297.41562532,0.00018,2]
[404419589,1770125444991,-297.41562532,0.00018,2]
[404419590,1770125445000,-297.41562532,0.00018,2]
[404419591,1770125445009,-297.41562532,0.00018,2]
[404419592,1770125445019,-297.41562532,0.00018,2]
[404419593,1770125445028,-297.41562531,0.00018,2]
[404419594,1770125445037,-297.41562531,0.00018,2]
[404419595,1770125445046,-297.41562531,0.00018,2]
[404419597,1770125445056,-297.41562531,0.00018,2]
[404419599,1770125445065,-297.41562531,0.00018,2]
[404419601,1770125445074,-10000.0,0.00018,2]
[404419602,1770125445083,-3181419.25766618,0.00018,2]
[404419604,1770125445099,-378.66,0.00018,2]
[404419605,1770125445110,-4308.59161189,0.00018,2]
[404419606,1770125445125,-7677.89614001,0.00018,2]
[404419607,1770125445576,-5728.15563805,0.00011099,2]
[404419608,1770125445586,-2471.026,0.00017373,2]
[404419609,1770125445595,-6795.51589337,0.00018,2]
[404419610,1770125445607,-22208.64123285,0.00018,2]
[404419611,1770125445787,-553.70459035,0.00018,2]
[404419612,1770125445957,-7142.88715922,0.00018,2]
[404419622,1770125543612,400.0,7.7e-05,2]
[404419623,1770125545714,900.0,7.8e-05,2]
[404419624,1770125547811,1400.0,7.9e-05,2]
[404419625,1770125549929,1900.0,8e-05,2]
[404419627,1770126467116,-3483.34,8.219e-05,2]
[404419628,1770126467338,-3033.33,8.219e-05,2]
[404419632,1770126631823,-422.0522,8.313e-05,2]
[404419633,1770126631832,-250.0,8.313e-05,2]
[404419634,1770126631842,-300.0,8.313e-05,2]
[404419635,1770126631857,-460.5631019,8.313e-05,2]
[404419636,1770126631880,-39.4368981,8.313e-05,2]
[404419637,1770126631890,-250.0,8.313e-05,2]
[404419638,1770126631900,-303.41841958,8.313e-05,2]
[404419639,1770126631909,-500.0,8.313e-05,2]
[404419640,1770126631919,-99.19321923,8.313e-05,2]
[404419641,1770126631931,-400.80678077,8.313e-05,2]
[404419642,1770126631941,-189.39384126,8.313e-05,2]
[404419643,1770126631957,-310.60615874,8.313e-05,2]
[404419644,1770126631968,-162.4674,8.35e-05,2]
[404419645,1770126631977,-720.83,8.446e-05,2]
[404419646,1770126631987,-200.0,8.7e-05,3]
[404419647,1770126631997,-1200.0,8.799e-05,2]
[404419648,1770126632006,-500.0,8.8e-05,3]
[404419649,1770126632015,-700.0,8.9e-05,3]
[404419650,1770126632027,-300.0,8.941e-05,2]
[404419651,1770126632037,-300.0,8.941e-05,2]
[404419652,1770126632048,-341.94675315,8.942e-05,2]
[404419653,1770126632059,-500.0,8.942e-05,2]
[404419655,1770126632068,-458.01379533,8.942e-05,2]
[404419657,1770126632077,-500.0,8.942e-05,2]
[404419659,1770126632087,-500.0,8.942e-05,2]
[404419660,1770126632096,-500.0,8.942e-05,2]
[404419661,1770126632106,-500.0,8.942e-05,2]
[404419662,1770126632115,-241.00352566,8.942e-05,2]
[404419663,1770126632124,-500.0,8.942e-05,2]
[404419664,1770126632134,-500.0,8.942e-05,2]
[404419665,1770126632143,-500.0,8.942e-05,2]
[404419666,1770126632153,-500.0,8.942e-05,2]
[404419667,1770126632164,-500.0,8.942e-05,2]
[404419668,1770126632174,-318.87662267,8.942e-05,2]
[404419670,1770126632184,-500.0,8.942e-05,2]
[404419672,1770126632193,-500.0,8.942e-05,2]
[404419673,1770126632203,-299.75585909,8.942e-05,2]
[404419674,1770126632212,-500.0,8.942e-05,2]
[404419675,1770126632222,-500.0,8.942e-05,2]
[404419676,1770126632231,-500.0,8.942e-05,2]
[404419677,1770126632245,-500.0,8.942e-05,2]
[404419678,1770126632254,-500.0,8.942e-05,2]
[404419679,1770126632264,-500.0,8.942e-05,2]
[404419680,1770126632275,-500.0,8.942e-05,2]
[404419681,1770126632286,-500.0,8.942e-05,2]
[404419682,1770126632295,-500.0,8.942e-05,2]
[404419683,1770126632305,-500.0,8.942e-05,2]
[404419684,1770126632317,-500.0,8.942e-05,2]
[404419685,1770126632327,-500.0,8.942e-05,2]
[404419686,1770126632337,-500.0,8.942e-05,2]
[404419687,1770126632346,-500.0,8.942e-05,2]
[404419688,1770126632356,-500.0,8.942e-05,2]
[404419689,1770126632366,-500.0,8.942e-05,2]
[404419690,1770126632375,-503.15213408,8.942e-05,2]
[404419691,1770126632385,-500.0,8.942e-05,2]
[404419692,1770126632394,-500.0,8.942e-05,2]
[404419693,1770126632404,-150.0,8.942e-05,2]
[404419694,1770126632413,-300.0,8.942e-05,2]
[404419695,1770126632427,-7434.15439865,8.943e-05,2]
[404419696,1770126632439,-32285.45968539,8.943e-05,2]
[404419697,1770126632451,-292.97700002,8.943e-05,2]
[404419698,1770126632463,-29034.69203101,8.943e-05,2]
[404419699,1770126632486,-3406.59746186,8.943e-05,2]
[404419700,1770126632497,-1849.13491146,8.943e-05,2]
[404419702,1770126637859,-20200.89889173,8.943e-05,2]
[404419703,1770126637914,-3405496.08561988,8.943e-05,2]
[404419704,1770126637924,-191.0,8.958e-05,2]
[404419705,1770126637933,-353.0,8.976e-05,2]
[404419706,1770126637943,-301.0,8.994e-05,2]
[404419707,1770126637952,-1000.0,9e-05,3]
[404419708,1770126637961,-150.01443204,9e-05,2]
[404419709,1770126637970,-1222.0,9.007e-05,2]
[404419710,1770126637980,-176.0,9.012e-05,2]
[404419711,1770126637990,-1001.0,9.025e-05,2]
[404419712,1770126637999,-185.0,9.029e-05,2]
[404419713,1770126638009,-1501.0,9.043e-05,2]
[404419714,1770126638018,-278.0,9.047e-05,2]
[404419715,1770126638027,-369.0,9.065e-05,2]
[404419716,1770126638036,-302.0,9.083e-05,2]
[404419717,1770126638045,-1600.0,9.087e-05,2]
[404419718,1770126638055,-1331.96,9.1e-05,2]
[404419719,1770126638064,-497.0,9.101e-05,2]
[404419720,1770126638074,-150.99,9.132e-05,2]
[404419721,1770126638083,-999.99,9.132e-05,2]
[404419722,1770126638092,-299.99,9.132e-05,2]
[404419723,1770126638102,-9999.99,9.132e-05,2]
[404419724,1770126638111,-150.99,9.132e-05,2]
[404419725,1770126638120,-6484.12,9.132e-05,2]
[404419726,1770126638129,-9999.99,9.132e-05,2]
[404419727,1770126638139,-500.0,9.133e-05,2]
[404419728,1770126638148,-562.28195765,9.133e-05,2]
[404419729,1770126638157,-500.0,9.133e-05,2]
[404419730,1770126638166,-500.0,9.133e-05,2]
[404419731,1770126638175,-500.55069623,9.133e-05,2]
[404419732,1770126638185,-500.0,9.133e-05,2]
[404419733,1770126638195,-500.0,9.133e-05,2]
[404419734,1770126638204,-166.51015303,9.133e-05,2]
[404419736,1770126638213,-500.0,9.133e-05,2]
[404419737,1770126638223,-500.0,9.133e-05,2]
[404419738,1770126638235,-300.0,9.144e-05,2]
[404419739,1770126638249,-500.0,9.144e-05,2]
[404419740,1770126638258,-300.0,9.144e-05,2]
[404419742,1770126638268,-193.0,9.144e-05,2]
[404419744,1770126638279,-300.0,9.144e-05,2]
[404419745,1770126638288,-250.0,9.144e-05,2]
[404419747,1770126638298,-200.0,9.148e-05,2]
[404419749,1770126638309,-10501.01069688,9.193e-05,2]
[404419751,1770126638318,-417.0,9.229e-05,2]
[404419753,1770126638327,-1386.37,9.42e-05,2]
[404419755,1770126638337,-19761.95,9.476e-05,2]
[404419757,1770126638346,-1680.0,9.679e-05,2]
[404419758,1770126638355,-2544.7096,9.791e-05,2]
[404419760,1770126638365,-420.0,9.835e-05,2]
[404419762,1770126638374,-255.0,9.836e-05,2]
[404419764,1770126638384,-420.0,9.836e-05,2]
[404419766,1770126638394,-598.32162239,9.853e-05,2]
[404419768,1770126638403,-25175.95,9.891e-05,2]
[404419770,1770126638413,-164.0,0.0001,2]
[404419772,1770126638422,-1110.19,0.0001,2]
[404419773,1770126638431,-200.0,0.0001,2]
[404419774,1770126638440,-500.0,0.0001,2]
[404419775,1770126638449,-151.0,0.0001,2]
[404419776,1770126638458,-151.0,0.0001,2]
[404419777,1770126638467,-151.0,0.0001,2]
[404419778,1770126638476,-151.0,0.0001,2]
[404419779,1770126638485,-151.0,0.0001,2]
[404419780,1770126638495,-151.0,0.0001,2]
[404419781,1770126638504,-151.0,0.0001,2]
[404419782,1770126638513,-151.0,0.0001,2]
[404419783,1770126638523,-151.0,0.0001,2]
[404419784,1770126638532,-151.0,0.0001,2]
[404419785,1770126638541,-151.0,0.0001,2]
[404419787,1770126638550,-151.0,0.0001,2]
[404419789,1770126638560,-151.0,0.0001,2]
[404419791,1770126638569,-151.0,0.0001,2]
[404419793,1770126638578,-151.0,0.0001,2]
[404419795,1770126638587,-151.0,0.0001,2]
[404419797,1770126638596,-151.0,0.0001,2]
[404419799,1770126638606,-151.0,0.0001,2]
[404419801,1770126638615,-500.0,0.0001,2]
[404419803,1770126638624,-151.0,0.0001,2]
[404419806,1770126638634,-500.0,0.0001,2]
[404419808,1770126638643,-500.0,0.0001,2]
[404419810,1770126638652,-151.0,0.0001,2]
[404419812,1770126638661,-500.0,0.0001,2]
[404419814,1770126638670,-151.0,0.0001,2]
[404419816,1770126638679,-500.0,0.0001,2]
[404419818,1770126638687,-151.0,0.0001,2]
[404419820,1770126638697,-500.0,0.0001,2]
[404419821,1770126638706,-151.0,0.0001,2]
[404419824,1770126638716,-151.0,0.0001,2]
[404419826,1770126638725,-151.0,0.0001,2]
[404419828,1770126638735,-500.0,0.0001,2]
[404419829,1770126638745,-151.0,0.0001,2]
[404419832,1770126638754,-151.0,0.0001,2]
[404419833,1770126638763,-500.0,0.0001,2]
[404419836,1770126638772,-151.0,0.0001,2]
[404419837,1770126638783,-500.0,0.0001,2]
[404419839,1770126638792,-151.0,0.0001,2]
[404419842,1770126638803,-500.0,0.0001,2]
[404419843,1770126638812,-500.0,0.0001,2]
[404419845,1770126638822,-151.0,0.0001,2]
[404419848,1770126638832,-500.0,0.0001,2]
[404419850,1770126638841,-151.0,0.0001,2]
[404419851,1770126638850,-500.0,0.0001,2]
[404419853,1770126638860,-500.0,0.0001,2]
[404419855,1770126638869,-500.0,0.0001,2]
[404419857,1770126638879,-500.0,0.0001,2]
[404419859,1770126638888,-500.0,0.0001,2]
[404419861,1770126638897,-500.0,0.0001,2]
[404419863,1770126638907,-500.0,0.0001,2]
[404419866,1770126638916,-500.0,0.0001,2]
[404419868,1770126638925,-500.0,0.0001,2]
[404419869,1770126638935,-500.0,0.0001,2]
[404419872,1770126638944,-200.0,0.0001,2]
[404419873,1770126638954,-176.08748064,0.0001,2]
[404419876,1770126638964,-269.09178599,0.0001,2]
[404419878,1770126638973,-540.05504507,0.0001,2]
[404419880,1770126638983,-540.05504507,0.0001,2]
[404419882,1770126638992,-1600.0,0.00010223,2]
[404419884,1770126639002,-575.73436201,0.00010268,2]
[404419886,1770126639012,-1110.19,0.00010274,2]
[404419888,1770126639021,-1110.19,0.00010548,2]
[404419890,1770126639031,-2351.0,0.00010647,2]
[404419892,1770126639040,-479.93486381,0.00010785,2]
[404419894,1770126639049,-587.0,0.00010818,2]
[404419896,1770126639059,-587.0,0.0001082,2]
[404419898,1770126639068,-433.0,0.0001082,2]
[404419900,1770126639078,-1110.19,0.00010822,2]
[404419902,1770126639087,-1300.0,0.000109,3]
[404419903,1770126639096,-2147.65440156,0.000109,2]
[404419906,1770126639106,-2147.65440152,0.000109,2]
[404419908,1770126639117,-4122.6247,0.00010909,2]
[404419910,1770126639126,-89306.5331,0.00010909,2]
[404419912,1770126639135,-523.05401173,0.00010935,2]
[404419914,1770126639145,-250.0,0.00010984,2]
[404419916,1770126639154,-164.0,0.00011,2]
[404419917,1770126639163,-434.82,0.00011006,2]
[404419919,1770126639172,-1110.19,0.00011096,2]
[404419922,1770126639181,-4582.52451044,0.00011099,2]
[404419924,1770126639191,-4582.52451044,0.00011099,2]
[404419926,1770126639201,-4582.52451044,0.00011099,2]
[404419928,1770126639210,-51983.55087805,0.00011099,2]
[404419930,1770126639219,-51983.55087803,0.00011099,2]
[404419932,1770126639229,-51983.55087803,0.00011099,2]
[404419934,1770126639242,-150.0,0.00011233,2]
[404419936,1770126639252,-150.01443204,0.00011311,2]
[404419938,1770126639261,-1600.0,0.00011359,2]
[404419940,1770126639270,-1110.19,0.0001137,2]
[404419942,1770126639281,-2147.65440152,0.00011471,2]
[404419944,1770126639290,-151.89,0.00011478,2]
[404419946,1770126639300,-6516.67,0.00011507,2]
[404419948,1770126639310,-1110.19,0.00011644,2]
[404419950,1770126639319,-3292.0,0.00011711,2]
[404419952,1770126639328,-4582.52451044,0.00011811,2]
[404419954,1770126639337,-51983.55087803,0.00011878,2]
[404419956,1770126639346,-823.0,0.000119,2]
[404419958,1770126639355,-736.0,0.00011901,2]
[404419960,1770126639364,-1110.19,0.00011918,2]
[404419962,1770126639373,-1886.6178149,0.00012,2]
[404419964,1770126639382,-500.0,0.0001211,2]
[404419966,1770126639391,-1110.19,0.00012192,2]
[404419968,1770126639400,-164.0,0.000123,2]
[404419970,1770126639409,-1110.19,0.00012466,2]
[404419972,1770126639419,-1600.0,0.00012495,2]
[404419974,1770126639428,-165.13,0.00012526,2]
[404419976,1770126639437,-1110.19,0.0001274,2]
[404419978,1770126639446,-2147.65440152,0.00012757,2]
[404419980,1770126639455,-4582.52451044,0.00012781,2]
[404419982,1770126639465,-51983.55087803,0.00012837,2]
[404419984,1770126639474,-4609.0,0.00012883,2]
[404419985,1770126639483,-1110.19,0.00013014,2]
[404419987,1770126639493,-1152.0,0.0001309,2]
[404419989,1770126639502,-1252.0,0.00013091,2]
[404419991,1770126639512,-1110.19,0.00013288,2]
[404419994,1770126639521,-151.0,0.00013324,2]
[404419996,1770126639531,-151.0,0.00013324,2]
[404419998,1770126639539,-269.09178599,0.000134,2]
[404420000,1770126639548,-3240.0,0.00013425,2]
[404420001,1770126639558,-1110.19,0.00013562,2]
[404420004,1770126639567,-151.0,0.00013626,2]
[404420006,1770126639576,-151.0,0.00013626,2]
[404420008,1770126639585,-1600.0,0.00013631,2]
[404420010,1770126639595,-151.0,0.00013652,2]
[404420012,1770126639604,-151.0,0.00013652,2]
[404420014,1770126639614,-151.0,0.00013673,2]
[404420016,1770126639623,-151.0,0.00013673,2]
[404420018,1770126639633,-189.27951938,0.00013698,2]
[404420020,1770126639643,-452.02134495,0.00013698,2]
[404420022,1770126639653,-500.0,0.00013698,2]
[404420024,1770126639662,-500.0,0.00013698,2]
[404420026,1770126639671,-500.0,0.00013698,2]
[404420028,1770126639680,-438.97921379,0.00013698,2]
[404420030,1770126639689,-199.38200897,0.00013698,2]
[404420032,1770126639698,-500.0,0.00013698,2]
[404420034,1770126639707,-500.0,0.00013698,2]
[404420036,1770126639716,-500.0,0.00013698,2]
[404420038,1770126639725,-500.0,0.00013698,2]
[404420040,1770126639734,-378.56522147,0.00013698,2]
[404420042,1770126639743,-500.0,0.00013698,2]
[404420044,1770126639752,-500.0,0.00013698,2]
[404420046,1770126639761,-500.0,0.00013698,2]
[404420048,1770126639770,-500.0,0.00013698,2]
[404420050,1770126639779,-500.0,0.00013698,2]
[404420052,1770126639787,-500.0,0.00013698,2]
[404420053,1770126639796,-500.0,0.00013698,2]
[404420055,1770126639806,-500.0,0.00013698,2]
[404420057,1770126639815,-500.0,0.00013698,2]
[404420059,1770126639824,-222.83714718,0.00013698,2]
[404420061,1770126639833,-500.0,0.00013698,2]
[404420063,1770126639842,-500.0,0.00013698,2]
[404420065,1770126639851,-295.88498896,0.00013698,2]
[404420067,1770126639860,-500.0,0.00013698,2]
[404420069,1770126639869,-500.0,0.00013698,2]
[404420071,1770126639878,-500.0,0.00013698,2]
[404420073,1770126639887,-500.0,0.00013698,2]
[404420075,1770126639897,-500.0,0.00013698,2]
[404420077,1770126639907,-500.0,0.00013698,2]
[404420079,1770126639916,-500.0,0.00013698,2]
[404420081,1770126639925,-558.31479011,0.00013698,2]
[404420083,1770126639934,-552.61203619,0.00013698,2]
[404420085,1770126639943,-500.0,0.00013698,2]
[404420087,1770126639952,-500.0,0.00013698,2]
[404420089,1770126639960,-509.06540724,0.00013698,2]
[404420091,1770126639969,-200.0,0.00013699,2]
[404420093,1770126639979,-500.0,0.000137,2]
[404420095,1770126639987,-260.20893212,0.000137,2]
[404420096,1770126639996,-500.0,0.000137,2]
[404420098,1770126640005,-500.0,0.000137,2]
[404420100,1770126640014,-500.0,0.000137,2]
[404420102,1770126640024,-500.0,0.000137,2]
[404420104,1770126640033,-4582.52451044,0.00013752,2]
[404420106,1770126640042,-51983.55087803,0.00013796,2]
[404420108,1770126640051,-1110.19,0.00013836,2]
[404420110,1770126640060,-2147.65440152,0.00014043,2]
[404420112,1770126640069,-1110.19,0.0001411,2]
[404420114,1770126640078,-6453.0,0.00014171,2]
[404420116,1770126640087,-500.0,0.00014247,2]
[404420118,1770126640096,-1000.0,0.00014248,2]
[404420120,1770126640105,-1000.0,0.00014248,2]
[404420122,1770126640119,-500.0,0.00014248,2]
[404420124,1770126640127,-160.0,0.0001434,2]
[404420127,1770126640137,-1110.19,0.00014384,2]
[404420129,1770126640146,-1613.0,0.00014399,2]
[404420130,1770126640155,-1671.0,0.00014405,2]
[404420132,1770126640165,-500.0,0.00014599,2]
[404420134,1770126640174,-500.0,0.00014599,2]
[404420136,1770126640183,-500.0,0.00014599,2]
[404420139,1770126640192,-500.0,0.00014599,2]
[404420140,1770126640201,-1110.19,0.00014658,2]
[404420142,1770126640210,-4582.52451044,0.00014722,2]
[404420145,1770126640220,-51983.55087803,0.00014755,2]
[404420146,1770126640229,-150.01443204,0.00014778,2]
[404420148,1770126640242,-495.7739334,0.00014796,2]
[404420150,1770126640251,-369.98194845,0.00014796,2]
[404420152,1770126640260,-1110.19,0.00014932,2]
[404420155,1770126640269,-250.0,0.00015,2]
[404420157,1770126640278,-900.0,0.00015068,2]
[404420158,1770126640289,-1503.0,0.00015171,2]
[404420161,1770126640298,-1503.0,0.00015171,2]
[404420162,1770126640307,-151.0,0.00015171,2]
[404420164,1770126640316,-1503.0,0.00015171,2]
[404420166,1770126640326,-151.0,0.00015171,2]
[404420168,1770126640335,-1503.0,0.00015171,2]
[404420170,1770126640344,-151.0,0.00015171,2]
[404420172,1770126640353,-151.0,0.00015171,2]
[404420174,1770126640362,-1503.0,0.00015171,2]
[404420177,1770126640371,-151.0,0.00015171,2]
[404420179,1770126640380,-1503.0,0.00015171,2]
[404420180,1770126640390,-151.0,0.00015171,2]
[404420182,1770126640401,-151.0,0.00015171,2]
[404420184,1770126640411,-1503.0,0.00015171,2]
[404420187,1770126640421,-1503.0,0.00015171,2]
[404420189,1770126640430,-1503.0,0.00015171,2]
[404420191,1770126640439,-1503.0,0.00015171,2]
[404420193,1770126640448,-1503.0,0.00015171,2]
[404420194,1770126640457,-151.0,0.00015171,2]
[404420196,1770126640466,-1503.0,0.00015171,2]
[404420198,1770126640475,-151.0,0.00015171,2]
[404420200,1770126640484,-1503.0,0.00015171,2]
[404420202,1770126640493,-1503.0,0.00015171,2]
[404420204,1770126640502,-151.0,0.00015171,2]
[404420206,1770126640511,-1503.0,0.00015171,2]
[404420208,1770126640520,-151.0,0.00015171,2]
[404420210,1770126640530,-1503.0,0.00015171,2]
[404420212,1770126640539,-151.0,0.00015171,2]
[404420214,1770126640547,-1503.0,0.00015171,2]
[404420215,1770126640556,-1503.0,0.00015171,2]